{"text_format":"1","workbook":"xlsx","n_sheets":7,"sheets":["landing","Intro","Vurdering_MM","Vurdering_FA","Resultat_MM","Resultat_FA","data"],"not_rendered":{"charts":0,"images":6,"macros":1,"external_links":0,"defined_names":34,"comments":0,"pivot_tables":0},"unopened":[],"bounds":{"document_bytes":16777216,"sheet_cells":100000,"rows_first":2000,"rows_last":500,"rows_between":2000,"halvings":0,"cell_chars":16384,"cell_head_chars":4096},"cells_cut":0,"cells_raw":0,"read":"whole","date_system":"1900"}

{"sheet":"landing","index":0,"n_rows":34,"n_cols":2,"rows_kept":34,"cut":false,"hidden":false,"merged":[]}
[]
[null,"Dersom du har åpnet egenvurderingsverktøyet i onlineversjonen av Excel, må du bytte til skrivebordsprogrammet."]
[null,"Velg Åpne i skrivebordsprogram i nedtrekksmenyen."]
[]
[]
[]
[]
[]
[]
[]
[]
[null,"I nedtrekksmenyen velger du deretter: Åpne i skrivebordsprogram"]
[]
[]
[]
[]
[]
[]
[]
[]
[]
[]
[]
[]
[]
[null,"Når du er i skrivebordsprogrammet: Dersom dette varselet dukker opp i menyen over:"]
[]
[]
[]
[]
[]
[null,"Trykk på: Aktiver innhold"]
[]
[null,"Det er nødvendig for at funksjonene i dette verkøyet skal fungere"]

{"sheet":"Intro","index":1,"n_rows":19,"n_cols":26,"rows_kept":19,"cut":false,"hidden":false,"merged":[]}
[]
[null,"Egenvurdering av helsefremmende praksis i barnehagen"]
[]
[null,"Dette er et verktøy vi kan bruke når vi skal utforske egen praksis, identifisere forbedringsområder og utarbeide en tiltaksplan."]
[null,null,null,null,null,null,null,null,null,null,null,null,null,null,null,null,null,null,null,null,null,null,null,null,1,"Praksis er god"]
[null,"Skriv inn navn på barnehage og årstall, og velg periode",null,null,null,null,null,null,null,null,null,null,null,null,null,null,null,null,null,null,null,null,null,null,2,"Praksis kan bli bedre"]
[null,null,null,null,null,null,null,null,null,null,null,null,null,null,null,null,null,null,null,null,null,null,null,null,3,"Praksis må endres"]
[null,"Barnehage",null,"Årstall",null,"Periode"]
[]
[]
[null,"Egenvurderingen består av fire steg:"]
[]
[null,"Fyll ut egenvurderingsskjema for mat og måltider. Skjemaet består av 18 kjennetegn ved god praksis for mat og måltider."]
[null,null,null,null,null,null,null,null,null,null,null,null,null,null,null,null,null,null,null,null,null,null,"Periode"]
[null,"Fyll ut egenvurderingsskjema for fysisk aktivitet. Skjemaet består av 14 kjennetegn ved god praksis for fysisk aktivitet.",null,null,null,null,null,null,null,null,null,null,null,null,null,null,null,null,null,null,null,null,"Høst"]
[null,null,null,null,null,null,null,null,null,null,null,null,null,null,null,null,null,null,{"$f":"CONCATENATE(B9,\"_\",D9,\"_\",F9)","v":"__"},null,null,null,"Vår"]
[null,"Velg noen kjennetegn for mat og måltider som det er ønskelig å jobbe videre med, og utarbeid tiltak for disse. "]
[]
[null,"Velg noen kjennetegn for fysisk aktivitet som det er ønskelig å jobbe videre med, og utarbeid tiltak for disse."]

{"sheet":"Vurdering_MM","index":2,"n_rows":25,"n_cols":10,"rows_kept":25,"cut":false,"hidden":false,"merged":[[2,1,2,4]]}
[]
[null,{"$f":"\"Mat og måltider i \"&Intro!B9&\"\"","v":"Mat og måltider i "}]
[]
[null,"Vi serverer næringsrike matvarer som er i tråd med Helsedirektoratets kostråd",null,null,null,null,null,0,{"$f":"LOOKUP(H4,Setningsmatrise)","v":{"$error":"#N/A"}},"servere næringsrike matvarer som er i tråd med Helsedirektoratets kostråd"]
[null,"Vi setter sammen måltidene med matvarer fra de tre matvaregruppene",null,null,null,null,null,0,{"$error":"#N/A"},"sette sammen måltidene med matvarer fra de tre matvaregruppene"]
[null,"Vi serverer grønnsaker og frukt eller bær hver dag",null,null,null,null,null,0,{"$error":"#N/A"},"servere grønnsaker og frukt eller bær hver dag"]
[null,"Vi serverer grovt brød (3/4 eller 4/4 på Brødskala’n) og grove kornprodukter",null,null,null,null,null,0,{"$error":"#N/A"},"servere grovt brød (3/4 eller 4/4 på Brødskala’n) og grove kornprodukter"]
[null,"Vi varierer påleggstilbudet",null,null,null,null,null,0,{"$error":"#N/A"},"variere påleggstilbudet"]
[null,"Vi feirer bursdager uten kaker, kjeks, is, saft og lignende",null,null,null,null,null,0,{"$error":"#N/A"},"feire bursdager uten kaker, kjeks, is, saft og lignende"]
[null,"Vi gjennomfører de fleste feiringer og markeringer uten servering av søt og fet mat og søt drikke",null,null,null,null,null,0,{"$error":"#N/A"},"gjennomføre de fleste feiringer og markeringer uten servering av søt og fet mat og søt drikke"]
[null,"Vi serverer skummet melk, lettmelk eller lettmelk tilsatt vitamin D, og vann til måltidene",null,null,null,null,null,0,{"$error":"#N/A"},"servere skummet melk, lettmelk eller lettmelk tilsatt vitamin D, og vann til måltidene"]
[null,"Vi bruker måltidet som en pedagogisk arena der barna får medvirke i mat- og måltidsaktiviteter",null,null,null,null,null,0,{"$error":"#N/A"},"bruke måltidet som en pedagogisk arena der barna får medvirke i mat- og måltidsaktiviteter"]
[null,"Vi legger til rette for minst tre faste måltider hver dag med medbragt eller servert mat",null,null,null,null,null,0,{"$error":"#N/A"},"tilrettelegge for minst tre faste måltider hver dag med medbragt eller servert mat"]
[null,"Vi setter av minst 30 minutter til å spise",null,null,null,null,null,0,{"$error":"#N/A"},"sette av minst 30 minutter til å spise"]
[null,"Vi er bevisste vår egen rolle i forbindelse med mat og måltider",null,null,null,null,null,0,{"$error":"#N/A"},"være bevisste vår egen rolle i forbindelse med mat og måltider"]
[null,"Vi legger til rette for at barna skal utvikle matglede og sunne matvaner",null,null,null,null,null,0,{"$error":"#N/A"},"tilrettelegge for at barna skal utvikle matglede og sunne matvaner"]
[null,"Vi legger til rette for at måltidet bidrar til samtaler og sosiale relasjoner",null,null,null,null,null,0,{"$error":"#N/A"},"tilrettelegge for at måltidet bidrar til samtaler og sosiale relasjoner"]
[null,"Vi legger til rette for at barna prøver nye smaker og utforsker smakssansen",null,null,null,null,null,0,{"$error":"#N/A"},"tilrettelegge for at barna prøver nye smaker og utforsker smakssansen"]
[null,"Vi forankrer arbeid med mat og måltider i årsplanen, og andre planer",null,null,null,null,null,0,{"$error":"#N/A"},"forankre arbeid med mat og måltider i årsplanen, og andre planer"]
[null,"Vi har mat og måltider som tema på førstegangssamtaler, foreldremøter og foreldresamtaler",null,null,null,null,null,0,{"$error":"#N/A"},"ha mat og måltider som tema på førstegangssamtaler, foreldremøter og foreldresamtaler"]
[null,"Vi veileder foresatte om sunt og variert kosthold ved behov",null,null,null,null,null,0,{"$error":"#N/A"},"veilede foresatte om sunt og variert kosthold ved behov"]
[]
[null,null,null,null,null,null,null,1,"Vi er gode på å "]
[null,null,null,null,null,null,null,2,"Vi kan bli bedre på å "]
[null,null,null,null,null,null,null,3,"Vi må gjøre endringer for å "]

{"sheet":"Vurdering_FA","index":3,"n_rows":27,"n_cols":13,"rows_kept":27,"cut":false,"hidden":false,"merged":[[2,1,2,4]]}
[]
[null,{"$f":"\"Fysisk aktivitet i \"&Intro!B9&\"\"","v":"Fysisk aktivitet i "}]
[]
[null,"Vi forankrer arbeid med fysisk aktivitet i årsplanen, og andre planer",null,null,null,null,null,0,{"$f":"LOOKUP(H4,Setningsmatrise)","v":{"$error":"#N/A"}},"forankre arbeid med fysisk aktivitet i årsplanen, og andre planer"]
[null,"Vi tar initiativ til fysisk aktivitet for barna og med barna",null,null,null,null,null,0,{"$error":"#N/A"},"ta initiativ til fysisk aktivitet for barna og med barna"]
[null,"Vi er aktivt tilstedeværende i fysisk aktivitet med barna",null,null,null,null,null,0,{"$error":"#N/A"},"være aktivt tilstedeværende i fysisk aktivitet med barna"]
[null,"Vi legger til rette for mestringsopplevelser i fysisk aktivitet",null,null,null,null,null,0,{"$error":"#N/A"},"tilrettelegge for mestringsopplevelser i fysisk aktivitet"]
[null,"Vi legger til rette for varierte fysiske aktiviteter",null,null,null,null,null,0,{"$error":"#N/A"},"tilrettelegge for varierte fysiske aktiviteter"]
[null,"Vi gir barna tilgang til varierte bevegelsesmiljøer utenfor barnehageområdet",null,null,null,null,null,0,{"$error":"#N/A"},"gi barna tilgang til varierte bevegelsesmiljøer utenfor barnehageområdet"]
[null,"Vi legger til rette for risikofylt lek gjennom kroppslige utfordringer ",null,null,null,null,null,0,{"$error":"#N/A"},"tilrettelegge for risikofylt lek gjennom kroppslige utfordringer "]
[null,"Vi legger til rette for aktiviteter som inkluderer moderat og høy intensitet",null,null,null,null,null,0,{"$error":"#N/A"},"tilrettelegge for aktiviteter som inkluderer moderat eller høy intensitet"]
[null,"Vi legger til rette for et like godt aktivitetstilbud for jenter og gutter",null,null,null,null,null,0,{"$error":"#N/A"},"tilrettelegge for et like godt aktivitetstilbud for jenter og gutter"]
[null,"Vi identifiserer og aktiviserer barn med større behov for fysisk aktivitet ",null,null,null,null,null,0,{"$error":"#N/A"},"identifisere og aktivisere barn med større behov for fysisk aktivitet"]
[null,"Vi gjennomfører aktiviteter som stimulerer de grunnleggende grovmotoriske ferdighetene",null,null,null,null,null,0,{"$error":"#N/A"},"gjennomføre aktiviteter som stimulerer de grunnleggende grovmotoriske ferdighetene"]
[null,"Vi tilpasser fysisk aktivitet slik at barna har noe å strekke seg etter",null,null,null,null,null,0,{"$error":"#N/A"},"tilpasse fysisk aktivitet slik at barna har noe å strekke seg etter"]
[null,"Vi kombinerer fysisk aktivitet med andre pedagogiske aktiviteter ",null,null,null,null,null,0,{"$error":"#N/A"},"kombinere fysisk aktivitet med andre pedagogiske aktiviteter "]
[null,"Vi har fysisk aktivitet som tema på førstegangssamtaler, foreldremøter og foreldresamtaler",null,null,null,null,null,0,{"$error":"#N/A"},"ha fysisk aktivitet som tema på førstegangssamtaler, foreldremøter og foreldresamtaler"]
[]
[null,null,null,null,null,null,null,1,"Vi er gode på å "]
[null,null,null,null,null,null,null,2,"Vi kan bli bedre på å "]
[null,null,null,null,null,null,null,3,"Vi må gjøre endringer for å "]
[]
[]
[]
[]
[]
[null,null,null,null,null,null,null,null,null,null,null,null," "]

{"sheet":"Resultat_MM","index":4,"n_rows":37,"n_cols":9,"rows_kept":37,"cut":false,"hidden":false,"merged":[[30,2,31,2],[33,2,34,2],[36,2,37,2],[1,1,1,2],[9,4,10,4],[12,4,13,4],[15,4,16,4],[24,2,25,2],[27,2,28,2]]}
[]
[null,{"$f":"Intro!B9&\" \"&Intro!D9","v":" "}]
[]
[null,{"$f":"Vurdering_MM!H4","v":0},{"$f":"\"1. \"&CONCATENATE(Vurdering_MM!I4,Vurdering_MM!J4)","v":{"$error":"#N/A"}},null,null,null,null,null,false]
[null,{"$f":"Vurdering_MM!H5","v":0},{"$f":"\"2. \"&CONCATENATE(Vurdering_MM!I5,Vurdering_MM!J5)","v":{"$error":"#N/A"}},null,null,null,null,null,false]
[null,{"$f":"Vurdering_MM!H6","v":0},{"$f":"\"3. \"&CONCATENATE(Vurdering_MM!I6,Vurdering_MM!J6)","v":{"$error":"#N/A"}},null,null,null,null,null,false]
[null,{"$f":"Vurdering_MM!H7","v":0},{"$f":"\"4. \"&CONCATENATE(Vurdering_MM!I7,Vurdering_MM!J7)","v":{"$error":"#N/A"}},null,null,null,null,null,false]
[null,{"$f":"Vurdering_MM!H8","v":0},{"$f":"\"5. \"&CONCATENATE(Vurdering_MM!I8,Vurdering_MM!J8)","v":{"$error":"#N/A"}},null,null,null,null,null,false]
[null,{"$f":"Vurdering_MM!H9","v":0},{"$f":"\"6. \"&CONCATENATE(Vurdering_MM!I9,Vurdering_MM!J9)","v":{"$error":"#N/A"}},null,null,null,null,null,false]
[null,{"$f":"Vurdering_MM!H10","v":0},{"$f":"\"7. \"&CONCATENATE(Vurdering_MM!I10,Vurdering_MM!J10)","v":{"$error":"#N/A"}},null,null,null,null,null,false]
[null,{"$f":"Vurdering_MM!H11","v":0},{"$f":"\"8. \"&CONCATENATE(Vurdering_MM!I11,Vurdering_MM!J11)","v":{"$error":"#N/A"}},null,null,null,null,null,false]
[null,{"$f":"Vurdering_MM!H12","v":0},{"$f":"\"9. \"&CONCATENATE(Vurdering_MM!I12,Vurdering_MM!J12)","v":{"$error":"#N/A"}},null,null,null,null,null,false]
[null,{"$f":"Vurdering_MM!H13","v":0},{"$f":"\"10. \"&CONCATENATE(Vurdering_MM!I13,Vurdering_MM!J13)","v":{"$error":"#N/A"}},null,null,null,null,null,false]
[null,{"$f":"Vurdering_MM!H14","v":0},{"$f":"\"11. \"&CONCATENATE(Vurdering_MM!I14,Vurdering_MM!J14)","v":{"$error":"#N/A"}},null,null,null,null,null,false]
[null,{"$f":"Vurdering_MM!H15","v":0},{"$f":"\"12. \"&CONCATENATE(Vurdering_MM!I15,Vurdering_MM!J15)","v":{"$error":"#N/A"}},null,null,null,null,null,false]
[null,{"$f":"Vurdering_MM!H16","v":0},{"$f":"\"13. \"&CONCATENATE(Vurdering_MM!I16,Vurdering_MM!J16)","v":{"$error":"#N/A"}},null,null,null,null,null,false]
[null,{"$f":"Vurdering_MM!H17","v":0},{"$f":"\"14. \"&CONCATENATE(Vurdering_MM!I17,Vurdering_MM!J17)","v":{"$error":"#N/A"}},null,null,null,null,null,false]
[null,{"$f":"Vurdering_MM!H18","v":0},{"$f":"\"15. \"&CONCATENATE(Vurdering_MM!I18,Vurdering_MM!J18)","v":{"$error":"#N/A"}},null,null,null,null,null,false]
[null,{"$f":"Vurdering_MM!H19","v":0},{"$f":"\"16. \"&CONCATENATE(Vurdering_MM!I19,Vurdering_MM!J19)","v":{"$error":"#N/A"}},null,null,null,null,null,false]
[null,{"$f":"Vurdering_MM!H20","v":0},{"$f":"\"17. \"&CONCATENATE(Vurdering_MM!I20,Vurdering_MM!J20)","v":{"$error":"#N/A"}},null,null,null,null,null,false]
[null,{"$f":"Vurdering_MM!H21","v":0},{"$f":"\"18. \"&CONCATENATE(Vurdering_MM!I21,Vurdering_MM!J21)","v":{"$error":"#N/A"}},null,null,null,null,null,false]
[null,null,null,null,null,null,null,"Antall SANN",{"$f":"COUNTIF(I4:I21,TRUE)","v":0}]
[null,null,{"$f":"IF(F23>0,\"Tiltaksplan for mat og måltider\",\"\")","v":""},null,null,{"$f":"COUNTIF(I4:I21,TRUE)","v":0}]
[]
[null,null,{"$f":"IF(F23>0,\"Skriv her hvordan dere vil jobbe for å bevare eller forbedre praksis relatert til valgt påstand\",\"\")","v":""}]
[]
[]
[null,null,{"$f":"IF(F23>1,\"Skriv her hvordan dere vil jobbe for å bevare eller forbedre praksis relatert til valgt påstand\",\"\")","v":""}]
[]
[]
[null,null,{"$f":"IF(F23>2,\"Skriv her hvordan dere vil jobbe for å bevare eller forbedre praksis relatert til valgt påstand\",\"\")","v":""}]
[]
[]
[null,null,{"$f":"IF(F23>3,\"Skriv her hvordan dere vil jobbe for å bevare eller forbedre praksis relatert til valgt påstand\",\"\")","v":""}]
[]
[]
[null,null,{"$f":"IF(F23>4,\"Skriv her hvordan dere vil jobbe for å bevare eller forbedre praksis relatert til valgt påstand\",\"\")","v":""}]

{"sheet":"Resultat_FA","index":5,"n_rows":33,"n_cols":15,"rows_kept":33,"cut":false,"hidden":false,"merged":[[29,2,30,2],[32,2,33,2],[1,1,1,2],[20,2,21,2],[9,4,10,4],[12,4,13,4],[15,4,16,4],[23,2,24,2],[26,2,27,2]]}
[]
[null,{"$f":"Intro!B9&\" \"&Intro!D9","v":" "}]
[]
[null,{"$f":"Vurdering_FA!H4","v":0},{"$f":"\"1. \"&CONCATENATE(Vurdering_FA!I4,Vurdering_FA!J4)","v":{"$error":"#N/A"}},null,null,null,null,null,false,null,null,null,null,null,{"$f":"CONCATENATE(Intro!B9,\"_\",Intro!D9)","v":"_"}]
[null,{"$f":"Vurdering_FA!H5","v":0},{"$f":"\"2. \"&CONCATENATE(Vurdering_FA!I5,Vurdering_FA!J5)","v":{"$error":"#N/A"}},null,null,null,null,null,false]
[null,{"$f":"Vurdering_FA!H6","v":0},{"$f":"\"3. \"&CONCATENATE(Vurdering_FA!I6,Vurdering_FA!J6)","v":{"$error":"#N/A"}},null,null,null,null,null,false]
[null,{"$f":"Vurdering_FA!H7","v":0},{"$f":"\"4. \"&CONCATENATE(Vurdering_FA!I7,Vurdering_FA!J7)","v":{"$error":"#N/A"}},null,null,null,null,null,false]
[null,{"$f":"Vurdering_FA!H8","v":0},{"$f":"\"5. \"&CONCATENATE(Vurdering_FA!I8,Vurdering_FA!J8)","v":{"$error":"#N/A"}},null,null,null,null,null,false]
[null,{"$f":"Vurdering_FA!H9","v":0},{"$f":"\"6. \"&CONCATENATE(Vurdering_FA!I9,Vurdering_FA!J9)","v":{"$error":"#N/A"}},null,null,null,null,null,false]
[null,{"$f":"Vurdering_FA!H10","v":0},{"$f":"\"7. \"&CONCATENATE(Vurdering_FA!I10,Vurdering_FA!J10)","v":{"$error":"#N/A"}},null,null,null,null,null,false]
[null,{"$f":"Vurdering_FA!H11","v":0},{"$f":"\"8. \"&CONCATENATE(Vurdering_FA!I11,Vurdering_FA!J11)","v":{"$error":"#N/A"}},null,null,null,null,null,false]
[null,{"$f":"Vurdering_FA!H12","v":0},{"$f":"\"9. \"&CONCATENATE(Vurdering_FA!I12,Vurdering_FA!J12)","v":{"$error":"#N/A"}},null,null,null,null,null,false]
[null,{"$f":"Vurdering_FA!H13","v":0},{"$f":"\"10. \"&CONCATENATE(Vurdering_FA!I13,Vurdering_FA!J13)","v":{"$error":"#N/A"}},null,null,null,null,null,false]
[null,{"$f":"Vurdering_FA!H14","v":0},{"$f":"\"11. \"&CONCATENATE(Vurdering_FA!I14,Vurdering_FA!J14)","v":{"$error":"#N/A"}},null,null,null,null,null,false]
[null,{"$f":"Vurdering_FA!H15","v":0},{"$f":"\"12. \"&CONCATENATE(Vurdering_FA!I15,Vurdering_FA!J15)","v":{"$error":"#N/A"}},null,null,null,null,null,false]
[null,{"$f":"Vurdering_FA!H16","v":0},{"$f":"\"13. \"&CONCATENATE(Vurdering_FA!I16,Vurdering_FA!J16)","v":{"$error":"#N/A"}},null,null,null,null,null,false]
[null,{"$f":"Vurdering_FA!H17","v":0},{"$f":"\"14. \"&CONCATENATE(Vurdering_FA!I17,Vurdering_FA!J17)","v":{"$error":"#N/A"}},null,null,null,null,null,false]
[null,null,null,null,null,null,null,"Antall SANN",{"$f":"COUNTIF(I4:I17,TRUE)","v":0}]
[null,null,{"$f":"IF(F19>0,\"Tiltaksplan for fysisk aktivitet\",\"\")","v":""},null,null,{"$f":"COUNTIF(I4:I17,TRUE)","v":0}]
[]
[null,null,{"$f":"IF(F19>0,\"Skriv her hvordan dere vil jobbe for å bevare eller forbedre praksis relatert til valgt påstand\",\"\")","v":""},null,null,null,null,null,null,null,null,null,null," "]
[null,null,null,null,null,null,null,null,null,null,null,null,null,null," "]
[]
[null,null,{"$f":"IF(F19>1,\"Skriv her hvordan dere vil jobbe for å bevare eller forbedre praksis relatert til valgt påstand\",\"\")","v":""}]
[]
[]
[null,null,{"$f":"IF(F19>2,\"Skriv her hvordan dere vil jobbe for å bevare eller forbedre praksis relatert til valgt påstand\",\"\")","v":""}]
[]
[]
[null,null,{"$f":"IF(F19>3,\"Skriv her hvordan dere vil jobbe for å bevare eller forbedre praksis relatert til valgt påstand\",\"\")","v":""}]
[]
[]
[null,null,{"$f":"IF(F19>4,\"Skriv her hvordan dere vil jobbe for å bevare eller forbedre praksis relatert til valgt påstand\",\"\")","v":""}]

{"sheet":"data","index":6,"n_rows":33,"n_cols":7,"rows_kept":33,"cut":false,"hidden":false,"merged":[]}
["barnehage","årstall","periode","kategori","spørsmål","besvarelse_kvant","besvarelse_kval"]
[{"$f":"Intro!$B$9","v":0},{"$f":"Intro!$D$9","v":0},{"$f":"Intro!$F$9","v":0},"Mat og måltider","Vi serverer næringsrike matvarer som er i tråd med Helsedirektoratets kostråd",{"$f":"Vurdering_MM!H4","v":0},{"$f":"LOOKUP(F2,praksismatrise)","v":{"$error":"#N/A"}}]
[{"$f":"Intro!$B$9","v":0},{"$f":"Intro!$D$9","v":0},{"$f":"Intro!$F$9","v":0},"Mat og måltider","Vi setter sammen måltidene med matvarer fra de tre matvaregruppene",{"$f":"Vurdering_MM!H5","v":0},{"$error":"#N/A"}]
[{"$f":"Intro!$B$9","v":0},{"$f":"Intro!$D$9","v":0},{"$f":"Intro!$F$9","v":0},"Mat og måltider","Vi serverer grønnsaker og frukt eller bær hver dag",{"$f":"Vurdering_MM!H6","v":0},{"$error":"#N/A"}]
[{"$f":"Intro!$B$9","v":0},{"$f":"Intro!$D$9","v":0},{"$f":"Intro!$F$9","v":0},"Mat og måltider","Vi serverer grovt brød (3/4 eller 4/4 på Brødskala’n) og grove kornprodukter",{"$f":"Vurdering_MM!H7","v":0},{"$error":"#N/A"}]
[{"$f":"Intro!$B$9","v":0},{"$f":"Intro!$D$9","v":0},{"$f":"Intro!$F$9","v":0},"Mat og måltider","Vi varierer påleggstilbudet",{"$f":"Vurdering_MM!H8","v":0},{"$error":"#N/A"}]
[{"$f":"Intro!$B$9","v":0},{"$f":"Intro!$D$9","v":0},{"$f":"Intro!$F$9","v":0},"Mat og måltider","Vi feirer bursdager uten kaker, kjeks, is, saft og lignende",{"$f":"Vurdering_MM!H9","v":0},{"$error":"#N/A"}]
[{"$f":"Intro!$B$9","v":0},{"$f":"Intro!$D$9","v":0},{"$f":"Intro!$F$9","v":0},"Mat og måltider","Vi gjennomfører de fleste feiringer og markeringer uten servering av søt og fet mat og søt drikke",{"$f":"Vurdering_MM!H10","v":0},{"$error":"#N/A"}]
[{"$f":"Intro!$B$9","v":0},{"$f":"Intro!$D$9","v":0},{"$f":"Intro!$F$9","v":0},"Mat og måltider","Vi serverer skummet melk, lettmelk eller lettmelk tilsatt vitamin D, og vann til måltidene",{"$f":"Vurdering_MM!H11","v":0},{"$error":"#N/A"}]
[{"$f":"Intro!$B$9","v":0},{"$f":"Intro!$D$9","v":0},{"$f":"Intro!$F$9","v":0},"Mat og måltider","Vi bruker måltidet som en pedagogisk arena der barna får medvirke i mat- og måltidsaktiviteter",{"$f":"Vurdering_MM!H12","v":0},{"$error":"#N/A"}]
[{"$f":"Intro!$B$9","v":0},{"$f":"Intro!$D$9","v":0},{"$f":"Intro!$F$9","v":0},"Mat og måltider","Vi legger til rette for minst tre faste måltider hver dag med medbragt eller servert mat",{"$f":"Vurdering_MM!H13","v":0},{"$error":"#N/A"}]
[{"$f":"Intro!$B$9","v":0},{"$f":"Intro!$D$9","v":0},{"$f":"Intro!$F$9","v":0},"Mat og måltider","Vi setter av minst 30 minutter til å spise",{"$f":"Vurdering_MM!H14","v":0},{"$error":"#N/A"}]
[{"$f":"Intro!$B$9","v":0},{"$f":"Intro!$D$9","v":0},{"$f":"Intro!$F$9","v":0},"Mat og måltider","Vi er bevisste vår egen rolle i forbindelse med mat og måltider",{"$f":"Vurdering_MM!H15","v":0},{"$error":"#N/A"}]
[{"$f":"Intro!$B$9","v":0},{"$f":"Intro!$D$9","v":0},{"$f":"Intro!$F$9","v":0},"Mat og måltider","Vi legger til rette for at barna skal utvikle matglede og sunne matvaner",{"$f":"Vurdering_MM!H16","v":0},{"$error":"#N/A"}]
[{"$f":"Intro!$B$9","v":0},{"$f":"Intro!$D$9","v":0},{"$f":"Intro!$F$9","v":0},"Mat og måltider","Vi legger til rette for at måltidet bidrar til samtaler og sosiale relasjoner",{"$f":"Vurdering_MM!H17","v":0},{"$error":"#N/A"}]
[{"$f":"Intro!$B$9","v":0},{"$f":"Intro!$D$9","v":0},{"$f":"Intro!$F$9","v":0},"Mat og måltider","Vi legger til rette for at barna prøver nye smaker og utforsker smakssansen",{"$f":"Vurdering_MM!H18","v":0},{"$error":"#N/A"}]
[{"$f":"Intro!$B$9","v":0},{"$f":"Intro!$D$9","v":0},{"$f":"Intro!$F$9","v":0},"Mat og måltider","Vi forankrer arbeid med mat og måltider i årsplanen, og andre planer",{"$f":"Vurdering_MM!H19","v":0},{"$error":"#N/A"}]
[{"$f":"Intro!$B$9","v":0},{"$f":"Intro!$D$9","v":0},{"$f":"Intro!$F$9","v":0},"Mat og måltider","Vi har mat og måltider som tema på førstegangssamtaler, foreldremøter og foreldresamtaler",{"$f":"Vurdering_MM!H20","v":0},{"$error":"#N/A"}]
[{"$f":"Intro!$B$9","v":0},{"$f":"Intro!$D$9","v":0},{"$f":"Intro!$F$9","v":0},"Mat og måltider","Vi veileder foresatte om sunt og variert kosthold ved behov",{"$f":"Vurdering_MM!H21","v":0},{"$error":"#N/A"}]
[{"$f":"Intro!$B$9","v":0},{"$f":"Intro!$D$9","v":0},{"$f":"Intro!$F$9","v":0},"Fysisk aktivitet","Vi forankrer arbeid med fysisk aktivitet i årsplanen, og andre planer",{"$f":"Vurdering_FA!H4","v":0},{"$error":"#N/A"}]
[{"$f":"Intro!$B$9","v":0},{"$f":"Intro!$D$9","v":0},{"$f":"Intro!$F$9","v":0},"Fysisk aktivitet","Vi tar initiativ til fysisk aktivitet for barna og med barna",{"$f":"Vurdering_FA!H5","v":0},{"$error":"#N/A"}]
[{"$f":"Intro!$B$9","v":0},{"$f":"Intro!$D$9","v":0},{"$f":"Intro!$F$9","v":0},"Fysisk aktivitet","Vi er aktivt tilstedeværende i fysisk aktivitet med barna",{"$f":"Vurdering_FA!H6","v":0},{"$error":"#N/A"}]
[{"$f":"Intro!$B$9","v":0},{"$f":"Intro!$D$9","v":0},{"$f":"Intro!$F$9","v":0},"Fysisk aktivitet","Vi legger til rette for mestringsopplevelser i fysisk aktivitet",{"$f":"Vurdering_FA!H7","v":0},{"$error":"#N/A"}]
[{"$f":"Intro!$B$9","v":0},{"$f":"Intro!$D$9","v":0},{"$f":"Intro!$F$9","v":0},"Fysisk aktivitet","Vi legger til rette for varierte fysiske aktiviteter",{"$f":"Vurdering_FA!H8","v":0},{"$error":"#N/A"}]
[{"$f":"Intro!$B$9","v":0},{"$f":"Intro!$D$9","v":0},{"$f":"Intro!$F$9","v":0},"Fysisk aktivitet","Vi gir barna tilgang til varierte bevegelsesmiljøer utenfor barnehageområdet",{"$f":"Vurdering_FA!H9","v":0},{"$error":"#N/A"}]
[{"$f":"Intro!$B$9","v":0},{"$f":"Intro!$D$9","v":0},{"$f":"Intro!$F$9","v":0},"Fysisk aktivitet","Vi legger til rette for risikofylt lek gjennom kroppslige utfordringer ",{"$f":"Vurdering_FA!H10","v":0},{"$error":"#N/A"}]
[{"$f":"Intro!$B$9","v":0},{"$f":"Intro!$D$9","v":0},{"$f":"Intro!$F$9","v":0},"Fysisk aktivitet","Vi legger til rette for aktiviteter som inkluderer moderat og høy intensitet",{"$f":"Vurdering_FA!H11","v":0},{"$error":"#N/A"}]
[{"$f":"Intro!$B$9","v":0},{"$f":"Intro!$D$9","v":0},{"$f":"Intro!$F$9","v":0},"Fysisk aktivitet","Vi legger til rette for et like godt aktivitetstilbud for jenter og gutter",{"$f":"Vurdering_FA!H12","v":0},{"$error":"#N/A"}]
[{"$f":"Intro!$B$9","v":0},{"$f":"Intro!$D$9","v":0},{"$f":"Intro!$F$9","v":0},"Fysisk aktivitet","Vi identifiserer og aktiviserer barn med større behov for fysisk aktivitet ",{"$f":"Vurdering_FA!H13","v":0},{"$error":"#N/A"}]
[{"$f":"Intro!$B$9","v":0},{"$f":"Intro!$D$9","v":0},{"$f":"Intro!$F$9","v":0},"Fysisk aktivitet","Vi gjennomfører aktiviteter som stimulerer de grunnleggende grovmotoriske ferdighetene",{"$f":"Vurdering_FA!H14","v":0},{"$error":"#N/A"}]
[{"$f":"Intro!$B$9","v":0},{"$f":"Intro!$D$9","v":0},{"$f":"Intro!$F$9","v":0},"Fysisk aktivitet","Vi tilpasser fysisk aktivitet slik at barna har noe å strekke seg etter",{"$f":"Vurdering_FA!H15","v":0},{"$error":"#N/A"}]
[{"$f":"Intro!$B$9","v":0},{"$f":"Intro!$D$9","v":0},{"$f":"Intro!$F$9","v":0},"Fysisk aktivitet","Vi kombinerer fysisk aktivitet med andre pedagogiske aktiviteter ",{"$f":"Vurdering_FA!H16","v":0},{"$error":"#N/A"}]
[{"$f":"Intro!$B$9","v":0},{"$f":"Intro!$D$9","v":0},{"$f":"Intro!$F$9","v":0},"Fysisk aktivitet","Vi har fysisk aktivitet som tema på førstegangssamtaler, foreldremøter og foreldresamtaler",{"$f":"Vurdering_FA!H17","v":0},{"$error":"#N/A"}]